Workbook

Sheet сев
A2: Наименование хозяйства | D2: Яровой сев (зерновые и зернобобовые), га | S2: Зерновые и зернобобовые, всего, га | V2: Яровой сев (прочие), га | AE2: Яровой сев, всего, га | AG2: %
D3: пшеница | G3: ячмень | J3: овес | M3: зернобобовые (горох,вика) | P3: прочие | S3: План | T3: Факт | U3: % | V3: рапс | Y3: кукуруза | AB3: однолетние | AC3: мн. травы б/п | AD3: картофель | AE3: План | AF3: Факт
D4: план | E4: факт | F4: % | G4: план | H4: факт | I4: % | J4: план | K4: факт | L4: % | M4: план | N4: факт | O4: % | P4: план | Q4: факт | R4: % | V4: план | W4: факт | X4: % | Y4: план | Z4: факт | AA4: %
A5: СППК "Агротакт" | F5: =E5/D5*100 ->  | I5: =H5/G5*100 ->  | L5: =K5/J5*100 ->  | N5: 0 | O5: =N5/M5*100 ->  | P5: 100 | R5: =Q5/P5*100 -> 0 | S5: =D5+G5+J5+M5+P5 -> 100 | T5: =E5+H5+K5+N5+Q5 -> 0 | U5: =T5/S5*100 -> 0 | X5: =W5/V5*100 ->  | AA5: =Z5/Y5*100 ->  | AE5: =S5+V5+Y5+AB5+AC5+AD5 -> 100 | AF5: =T5+W5+Z5+AB5+AC5+AD5 -> 0 | AG5: =AF5/AE5*100 -> 0
A6: ООО "Ленинское" | D6: 40 | F6: =E6/D6*100 -> 0 | G6: 211 | I6: =H6/G6*100 -> 0 | J6: 41 | L6: =K6/J6*100 -> 0 | M6: 141 | N6: 116 | O6: =N6/M6*100 -> 82.26950355 | R6: =Q6/P6*100 ->  | S6: =D6+G6+J6+M6+P6 -> 433 | T6: =E6+H6+K6+N6+Q6 -> 116 | U6: 26.78983834 | AE6: 433 | AF6: =T6+W6+Z6+AB6+AC6+AD6 -> 116 | AG6: 26.78983834
A7: ООО "Парма био" | S7: 0 | T7: 0 | AF7: 0
A8: ООО АП "Соколово" | J8: 200 | K8: 165 | L8: 82.5 | S8: 200 | T8: 165 | U8: 82.5 | AE8: 790 | AF8: 165 | AG8: 20.88607595
A9: ООО АФ "Галинское" | D9: 219 | E9: 40 | F9: 18.26484018 | J9: 214 | K9: 214 | L9: 100 | S9: 433 | T9: 254 | U9: 58.66050808 | AE9: 770 | AF9: 254 | AG9: 32.98701299
A10: ООО "Заполье" | S10: 0 | T10: 0 | AB10: 500 | AE10: 1300 | AF10: 500 | AG10: 38.46153846
A11: ООО АП "Заря Путино" | D11: 587 | E11: 398 | F11: 67.80238501 | G11: 1360 | H11: 425 | I11: 31.25 | J11: 300 | K11: 300 | L11: 100 | S11: 2247 | T11: 1123 | U11: 49.97774811 | V11: 659 | W11: 659 | X11: 100 | Y11: 934 | AA11: =Z11/Y11*100 -> 0 | AE11: 5778 | AF11: 1782 | AG11: 30.8411215
A12: Итого по предприятиям: | D12: =SUM(D5:D11) -> 846 | E12: =SUM(E5:E11) -> 438 | F12: 51.77304965 | G12: 1571 | H12: 425 | I12: 27.05283259 | J12: 755 | K12: 679 | L12: 89.93377483 | M12: 141 | N12: 116 | O12: 82.26950355 | P12: 100 | Q12: 0 | R12: 0 | S12: 3413 | T12: 1658 | U12: 48.57896279 | V12: 659 | W12: 659 | X12: 100 | Y12: 934 | Z12: 0 | AA12: 0 | AB12: 500 | AC12: 0 | AD12: 0 | AE12: 9171 | AF12: 2817 | AG12: 30.71638862
A13: КФХ | D13: 165 | E13: 133 | F13: 80.60606061 | G13: 112 | H13: 117 | I13: 104.4642857 | J13: 461 | K13: 457 | L13: 99.13232104 | S13: 738 | T13: 707 | U13: 95.79945799 | AC13: 100 | AE13: 739 | AF13: 807 | AG13: 109.2016238
A14: ВСЕГО: | D14: =D12+D13 -> 1011 | E14: =E12+E13 -> 571 | F14: 56.47873393 | G14: 1683 | H14: 542 | I14: 32.20439691 | J14: 1216 | K14: 1136 | L14: 93.42105263 | M14: 141 | N14: 116 | O14: 82.26950355 | P14: 100 | Q14: 0 | R14: 0 | S14: 4151 | T14: 2365 | U14: 56.97422308 | V14: 659 | W14: 659 | X14: 100 | Y14: 934 | Z14: 0 | AA14: 0 | AB14: 500 | AC14: 100 | AD14: 0 | AE14: 9910 | AF14: 3624 | AG14: 36.5691221
A15: На 02.05.2022 | E15: 0 | H15: 0 | K15: 65 | N15: 0 | Q15: 0 | T15: 0 | W15: 0 | Z15: 0 | AB15: 20 | AC15: 0 | AD15: 0 | AF15: 85

Sheet полевые раб.
B1: ИНФОРМАЦИЯ ПО ВЕРЕЩАГИНСКОМУ ГОРОДСКОМУ ОКРУГУ
A2: Полевые работы на 02.05.2023
A3: Наименование хозяйства | D3: Подкормка многолетних трав, га | E3: Подкормка озимых, га | F3: Боронование многолетних трав, га | G3: Боронование озимых, га | H3: Весновспашка,га | I3: Культивация, га | J3: Закрытие влаги, га | K3: Протравлено семян, т
A4: СППК "Агротакт" | J4: 60
A5: ООО "Ленинское" | D5: 130 | F5: 360 | I5: 148 | J5: 433
A6: ООО "Парма био" | D6: 216 | F6: 860
A7: ООО АП "Соколово" | F7: 910 | H7: 60 | J7: 394
A8: ООО АФ "Галинское" | F8: 1275 | I8: 433 | J8: 471
A9: ООО "Заполье" | D9: 700 | F9: 800 | I9: 900 | J9: 1000
A10: ООО АП "Заря Путино" | E10: 447 | F10: 933 | G10: 447 | I10: 2765 | J10: 3833 | K10: 150
A11: Итого по предприятиям: | D11: =SUM(D4:D10) -> 1046 | E11: 447 | F11: 5138 | G11: 447 | H11: 60 | I11: 4246 | J11: =SUM(J4:J10) -> 6191 | K11: =SUM(K4:K10) -> 150
A12: КФХ | F12: 1773.2 | I12: 932 | J12: 932
A13: ВСЕГО: | D13: =D11+D12 -> 1046 | E13: =E11+E12 -> 447 | F13: 6911.2 | G13: 447 | H13: 60 | I13: 5178 | J13: 7123 | K13: 150
A14: На 02.05.2022. | D14: 812 | E14: 379 | F14: 2661 | G14: 0 | H14: 96 | I14: 30 | J14: 1888 | K14: 0
